bitfinex-derivatives/quotes_SOLF0:USTF0_20250816
["timestamp","ask_amount","ask_price","bid_price","bid_amount"]
[1755303482451,3.04,186.38,186.35,5.3621]
[1755303482656,3.04,186.38,186.35,0.73]
[1755303483253,3.04,186.4,186.33,6.0928]
[1755303483555,3.04,186.4,186.33,0.73]
[1755303483751,3.04,186.4,186.32,5.48198196]
[1755303483951,0.03703461,186.38,186.32,5.48198196]
[1755303484154,0.03703461,186.38,186.32,6.21198196]
[1755303484354,3.04,186.35,186.32,6.21198196]
[1755303484858,3.04,186.37,186.33,0.73]
[1755303485159,3.04,186.37,186.34,6.0924]
[1755303485345,0.03703461,186.38,186.32,5.48198196]
[1755303485547,0.03703461,186.38,186.33,0.73]
[1755303485746,3.04,186.35,186.33,0.73]
[1755303485949,3.04,186.35,186.33,6.0928]
[1755303486554,0.03703461,186.38,186.34,5.3626]
[1755303486754,3.04,186.37,186.34,5.3626]
[1755303486954,3.04,186.36,186.34,5.3626]
[1755303487257,3.04,186.36,186.33,6.0927]
[1755303487457,0.03703461,186.38,186.32,5.48198196]
[1755303487655,0.03703461,186.38,186.33,0.73]
[1755303487852,0.03703461,186.38,186.32,5.48198196]
[1755303488061,0.03703461,186.38,186.33,0.73]
[1755303488260,3.04,186.35,186.33,0.73]
[1755303488450,3.04,186.35,186.34,5.3625]
[1755303488649,0.03703461,186.38,186.35,0.73]
[1755303488859,3.04,186.42,186.39,5.361]
[1755303489053,3.04,186.42,186.39,0.73]
[1755303489961,3.04,186.41,186.39,0.73]
[1755303490757,3.04,186.41,186.4,5.3608]
[1755303490959,3.04,186.39,186.38,0.03683195]
[1755303491459,3.04,186.39,186.35,5.3621]
[1755303491761,3.04,186.39,186.3,119.53286523]
[1755303491762,3.04,186.39,186.37,0.03779148]
[1755303492058,3.04,186.39,186.34,5.3625]
[1755303492465,3.04,186.39,186.31,0.73]
[1755303492965,3.04,186.39,186.35,0.03755892]
[1755303493461,3.04,186.46,186.35,0.03755892]
[1755303493662,3.99633703,186.45,186.35,0.03755892]
[1755303493964,3.04,186.43,186.35,5.3621]
[1755303494260,3.04,186.43,186.33,0.73]
[1755303494261,3.04,186.43,186.38,0.03675868]
[1755303495258,3.99822147,186.42,186.38,0.03675868]
[1755303495462,3.04,186.43,186.38,0.03675868]
[1755303495764,3.04,186.41,186.38,0.03675868]
[1755303496359,3.04,186.46,186.38,0.03675868]
[1755303497361,3.04,186.44,186.38,0.03675868]
[1755303497554,3.04,186.42,186.38,0.03675868]
[1755303497759,4.00027751,186.41,186.33,6.0929]
[1755303497956,3.04,186.4,186.33,6.0929]
[1755303498167,3.04,186.4,186.38,0.03537893]
[1755303499862,4.00332632,186.39,186.38,0.03537893]
[1755303500060,6.99332632,186.39,186.38,0.03537893]
[1755303501461,2.99,186.38,186.3,99.0]
[1755303501769,2.99,186.36,186.29,5.364]
[1755303502163,2.99,186.36,186.3,5.3637]
[1755303502763,0.03492866,186.35,186.3,5.3637]
[1755303503065,0.03492866,186.35,186.3,6.0937]
[1755303503267,2.99,186.32,186.3,5.3637]
[1755303504070,2.99,186.34,186.26,99.0]
[1755303504268,4.00430868,186.33,186.21,135.08]
[1755303504469,22.08403663,186.39,186.21,135.08]
[1755303504470,2.99,186.31,186.21,0.73]
[1755303504667,2.99,186.29,186.21,0.73]
[1755303504871,3.0300605,186.29,186.19,0.73]
[1755303505060,3.0300605,186.29,186.19,6.0968]
[1755303505265,16.09,186.31,186.19,0.73]
[1755303505466,2.99,186.27,186.19,0.73]
[1755303505665,2.99,186.25,186.19,0.73]
[1755303506772,2.99,186.25,186.19,6.0967]
[1755303507069,2.99,186.25,186.19,0.73]
[1755303507270,2.99,186.25,186.16,5.48198196]
[1755303507473,2.99,186.25,186.18,5.3672]
[1755303507768,2.99,186.25,186.14,5.48198196]
[1755303508073,2.99,186.23,186.09,0.73]
[1755303508273,2.99,186.21,186.09,0.73]
[1755303508465,0.03720939,186.2,186.09,0.73]
[1755303508774,2.99,186.19,186.09,0.73]
[1755303509469,0.03994021,186.16,186.09,0.73]
[1755303509671,0.03994021,186.16,186.15,6.0981]
[1755303510063,2.99,186.22,186.13,5.3686]
[1755303510373,0.03858422,186.17,186.09,0.73]
[1755303510566,2.99,186.16,186.09,0.73]
[1755303510770,2.99,186.16,186.11,5.369]
[1755303511069,3.02858422,186.17,186.09,0.73]
[1755303511672,2.99,186.15,186.12,5.3689]
[1755303511871,2.99,186.14,186.12,5.3689]
[1755303512169,3.02858422,186.17,186.09,0.73]
[1755303512576,2.99,186.17,186.09,0.73]
[1755303512777,2.99,186.17,186.15,5.3679]
[1755303513177,0.03936911,186.18,186.08,104.48198196]
[1755303513375,3.02936911,186.18,186.15,0.73]
[1755303513571,2.99,186.17,186.13,0.73]
[1755303513772,2.99,186.17,186.12,5.48198196]
[1755303514479,2.99,186.17,186.1,0.73]
[1755303515983,2.99,186.17,186.11,5.3692]
[1755303516283,2.99,186.17,186.08,5.48198196]
[1755303516284,2.99,186.17,186.08,6.21198196]
[1755303516782,2.99,186.17,186.1,5.3693]
[1755303516978,2.99,186.17,186.08,6.21198196]
[1755303517176,2.99,186.17,186.05,5.48198196]
[1755303517377,2.99,186.17,186.06,0.73]
[1755303517776,2.99,186.17,186.08,5.3701]
[1755303517973,2.99,186.12,186.06,0.73]
[1755303518685,2.99,186.1,186.07,0.73]
[1755303518883,2.99,186.1,186.08,0.73]
[1755303519281,20.57527763,186.23,186.05,5.48198196]
[1755303519486,0.03850006,186.11,186.06,0.73]
[1755303519689,8.66830665,186.22,186.02,99.0]
[1755303519690,2.99,186.1,186.03,0.73]
[1755303520083,3.02899983,186.1,186.03,0.73]
[1755303520283,3.02899983,186.1,186.02,5.48198196]
[1755303520484,3.02899983,186.1,185.99,0.73]
[1755303520679,3.02899983,186.1,185.99,5.3726]
[1755303520883,2.99,186.1,185.99,5.3726]
[1755303521190,0.03617555,186.06,185.99,5.3726]
[1755303521387,0.03617555,186.06,185.98,5.48198196]
[1755303521588,0.03617555,186.06,186.02,5.48198196]
[1755303521791,0.03617555,186.06,186.04,0.73]
[1755303521986,2.99,186.09,186.04,0.73]
[1755303522186,2.99,186.07,186.04,0.73]
[1755303522387,2.99,186.06,186.02,6.21198196]
[1755303522689,0.03808807,186.07,186.01,5.372]
[1755303522889,2.99,186.06,186.0,0.73]
[1755303523290,2.99,186.06,186.01,5.3719]
[1755303523493,3.02858828,186.05,186.02,0.73]
[1755303523688,0.03858828,186.05,186.02,5.48198196]
[1755303523896,151.56,186.18,186.04,6.1013]
[1755303524094,2.99,186.16,186.04,6.1013]
[1755303524290,0.03517778,186.05,186.04,0.73]
[1755303524593,21.60198196,186.16,185.98,5.48198196]
[1755303524793,3.98104066,186.15,185.99,0.73]
[1755303524992,3.02950096,186.06,186.01,5.372]
[1755303525188,2.99,186.04,186.01,6.102]
[1755303525583,2.99,186.07,186.03,0.73]
[1755303525790,151.56,186.18,186.02,5.48198196]
[1755303526096,0.03395071,186.07,186.05,6.1008]
[1755303526394,2.99,186.05,186.03,0.73]
[1755303526594,2.99,186.05,186.02,5.3717]
[1755303526994,2.99,186.05,186.02,6.1017]
[1755303527392,2.99,186.04,186.0,5.48198196]
[1755303527593,2.99,186.05,186.0,5.48198196]
[1755303527787,0.03730379,186.06,186.0,5.48198196]
[1755303527995,2.99,186.03,186.0,6.21198196]
[1755303528295,2.99,186.05,186.0,5.48198196]
[1755303529695,2.86,186.04,185.93,327.11498928]
[1755303529991,2.86,186.04,185.95,10.85568196]
[1755303530196,2.86,186.04,185.96,0.74]
[1755303530394,2.86,186.04,185.99,5.48198196]
[1755303530594,0.03617065,186.01,186.0,6.1125]
[1755303530799,2.86,186.04,186.0,0.74]
[1755303531000,2.86,186.04,186.01,0.74]
[1755303531195,2.86,186.11,185.99,10.8919935]
[1755303531599,2.86,186.11,185.99,5.48198196]
[1755303531799,2.86,186.11,185.99,6.22198196]
[1755303532094,2.86,186.11,185.93,191.63498928]
[1755303532095,2.86,186.11,186.03,5.52007098]
[1755303532297,2.86,186.11,186.04,6.1112]
[1755303532498,2.86,186.11,186.04,0.74]
[1755303532900,2.86,186.11,186.06,5.3705]
[1755303533097,2.86,186.11,186.04,0.74]
[1755303533497,2.86,186.11,186.08,0.74]
[1755303533700,2.86,186.21,186.08,0.74]
[1755303534097,2.86,186.21,186.11,5.3692]
[1755303534306,2.86,186.21,186.13,0.03699923]
[1755303534993,3.97684707,186.2,186.13,0.03699923]
[1755303535197,2.86,186.18,186.13,0.03699923]
[1755303536405,3.98167185,186.17,186.13,0.03699923]
[1755303536601,6.8417983,186.16,186.05,0.74]
[1755303536805,0.04068776,186.17,186.05,6.1109]
[1755303537002,2.86,186.15,186.04,5.48198196]
[1755303537304,2.86,186.15,186.05,6.1509]
[1755303537498,2.86,186.15,186.04,5.48198196]
[1755303537697,8.65010138,186.14,186.02,0.78]
[1755303537905,2.89709272,186.12,186.02,0.78]
[1755303538609,2.89709272,186.12,186.0,5.48198196]
[1755303539009,2.86,186.12,186.01,5.372]
[1755303539207,2.86,186.1,185.98,0.78]
[1755303539405,0.03908524,186.08,185.96,5.48198196]
[1755303539710,2.86,186.07,185.97,0.78]
[1755303540098,0.03600734,186.04,185.97,0.78]
[1755303540298,2.86,186.06,186.0,5.48198196]
[1755303540509,2.86,186.13,186.05,0.78]
[1755303540706,2.86,186.13,186.08,5.48198196]
[1755303540911,2.86,186.12,186.09,6.1498]
[1755303541304,2.86,186.14,186.06,0.78]
[1755303541607,2.86,186.12,186.0,6.26198196]
[1755303541809,2.86,186.1,186.0,6.26198196]
[1755303542010,2.86,186.09,186.01,0.78]
[1755303542707,2.86,186.07,186.02,0.78]
[1755303542901,135.28,186.15,186.02,0.78]
[1755303543103,2.86,186.06,186.02,0.78]
[1755303543308,2.86,186.07,186.03,0.78]
[1755303543612,2.86,186.06,186.03,0.78]
[1755303545109,2.86,186.12,186.01,6.26198196]
[1755303545407,2.86,186.1,186.01,6.26198196]
[1755303545606,2.86,186.08,185.99,0.78]
[1755303545807,2.86,186.06,185.99,0.78]
[1755303546513,4.01496209,186.05,185.99,0.78]
[1755303546712,4.01500542,186.04,185.96,6.26198196]
[1755303546907,2.86,186.03,185.96,6.26198196]
[1755303547109,2.86,186.03,185.96,0.78]
[1755303547614,4.01877314,186.02,185.94,5.48198196]
[1755303547912,2.86,186.01,185.95,0.78]
[1755303549420,4.02591545,186.0,185.95,0.78]
[1755303549606,2.86,186.03,185.95,0.78]
[1755303549810,4.02547122,186.02,185.99,5.3727]
[1755303550015,2.86,186.06,185.99,5.3727]
[1755303550315,8.76893303,186.05,185.99,5.3726]
[1755303550519,2.86,186.03,185.99,6.1526]
[1755303550716,2.86,186.02,185.99,6.1526]
[1755303551012,144.64744794,186.12,185.9,5.48198196]
[1755303551013,2.86,186.04,186.01,0.78]
[1755303551214,4.02689825,186.03,185.95,5.48198196]
[1755303551412,2.86,186.01,185.92,5.3747]
[1755303551617,2.86,185.99,185.91,0.78]
[1755303551918,2.86,185.99,185.92,5.3746]
[1755303552319,4.03105672,185.98,185.91,0.78]
[1755303552616,2.86,185.95,185.91,0.78]
[1755303552816,2.86,185.95,185.9,5.48198196]
[1755303553018,2.86,185.94,185.9,6.26198196]
[1755303553318,2.86,185.94,185.91,0.78]
[1755303553519,2.86,185.93,185.91,0.78]
[1755303554020,2.86,185.93,185.9,10.85728196]
[1755303554209,2.86,185.92,185.9,10.85728196]
[1755303554413,4.48811193,186.02,185.9,5.48198196]
[1755303554714,2.86,186.0,185.9,5.48198196]
[1755303554910,2.86,185.98,185.9,5.48198196]
[1755303555109,4.02881681,185.97,185.9,5.48198196]
[1755303555317,2.86,185.96,185.87,5.48198196]
[1755303555515,2.86,185.96,185.88,0.78]
[1755303555912,2.86,185.96,185.93,5.3745]
[1755303556117,2.86,186.02,185.93,5.3745]
[1755303556318,2.86,186.0,185.93,5.3745]
[1755303556614,2.86,185.98,185.88,0.78]
[1755303556819,4.02700499,185.97,185.88,0.78]
[1755303557020,4.02700499,185.96,185.88,0.78]
[1755303557221,2.86,185.95,185.88,0.78]
[1755303557624,2.86,185.95,185.89,5.3754]
[1755303557823,2.86,185.95,185.88,0.78]
[1755303558122,2.86,185.95,185.91,5.375]
[1755303558520,4.48811193,186.02,185.91,5.375]
[1755303558724,2.96,186.0,185.91,5.375]
[1755303558925,2.96,185.98,185.91,5.375]
[1755303559120,2.96,185.96,185.89,0.78]
[1755303559421,2.96,185.96,185.87,6.26198196]
[1755303559625,2.96,185.96,185.86,0.78]
[1755303560124,2.96,185.96,185.85,6.26198196]
[1755303560425,2.96,185.94,185.85,6.26198196]
[1755303560820,2.96,185.94,185.85,11.63858196]
[1755303561216,2.96,185.94,185.85,6.26198196]
[1755303561621,2.96,185.94,185.85,0.78]
[1755303561821,2.96,185.94,185.85,6.1567]
[1755303562829,2.96,185.94,185.86,5.3764]
[1755303563029,2.96,185.94,185.87,0.78]
[1755303563221,2.96,185.94,185.84,6.26198196]
[1755303563725,2.96,185.94,185.82,120.05381915]
[1755303563919,2.96,185.92,185.8,5.48198196]
[1755303564118,2.96,185.9,185.8,5.48198196]
[1755303564523,2.96,185.9,185.77,5.48198196]
[1755303564724,4.02358776,185.89,185.77,5.48198196]
[1755303564920,2.96,185.88,185.78,0.78]
[1755303565917,2.96,185.88,185.79,5.3783]
[1755303566325,2.96,185.88,185.78,0.78]
[1755303566524,2.96,185.88,185.79,5.3784]
[1755303567029,2.96,185.88,185.78,0.78]
[1755303567729,2.96,185.88,185.8,5.378]
[1755303567933,2.96,185.88,185.79,0.78]
[1755303568830,2.96,185.88,185.8,5.3782]
[1755303569031,2.96,185.88,185.77,5.48198196]
[1755303569428,2.96,185.88,185.77,6.26198196]
[1755303570231,2.96,185.88,185.73,5.48198196]
[1755303570431,2.96,185.87,185.78,5.3786]
[1755303570628,2.96,185.87,185.78,0.78]
[1755303571133,2.96,185.87,185.81,0.78]
[1755303571334,2.96,185.87,185.82,0.78]
[1755303571528,361.18,185.96,185.87,5.376]
[1755303571730,2.96,185.95,185.86,0.78]
[1755303572138,2.96,185.95,185.88,5.3757]
[1755303572439,2.96,185.95,185.9,0.78]
[1755303572634,136.04,186.03,185.91,0.78]
[1755303572635,2.96,185.98,185.91,0.78]
[1755303572831,2.96,185.97,185.94,0.78]
[1755303573033,2.96,186.0,185.94,0.78]
[1755303573233,2.96,186.0,185.98,5.3728]
[1755303573435,2.96,186.0,185.97,5.48198196]
[1755303573630,2.96,186.0,185.97,6.26198196]
[1755303573827,2.96,186.0,185.97,11.63508196]
[1755303574037,2.96,186.05,185.97,11.63508196]
[1755303574536,2.96,186.05,185.98,0.78]
[1755303575031,136.1,186.09,185.97,5.48198196]
[1755303575032,2.96,186.08,186.0,5.3724]
[1755303575232,2.96,186.08,185.97,5.48198196]
[1755303575438,2.96,186.08,185.96,0.78]
[1755303576139,2.96,186.06,185.93,5.48198196]
[1755303576338,2.96,186.06,185.91,0.78]
[1755303576527,2.96,186.04,185.91,0.78]
[1755303576728,4.0057387,186.03,185.91,0.78]
[1755303576935,4.0057387,186.02,185.89,6.26198196]
[1755303577237,2.96,186.0,185.89,6.26198196]
[1755303577540,2.96,186.0,185.89,5.48198196]
[1755303577933,140.10719721,185.99,185.86,0.78]
[1755303578132,4.00719721,185.98,185.86,0.78]
[1755303578333,2.96,185.97,185.86,0.78]
[1755303578737,2.96,185.97,185.83,6.26198196]
[1755303579138,2.96,185.95,185.83,6.26198196]
[1755303579340,2.96,185.95,185.84,0.78]
[1755303579534,2.96,185.95,185.88,0.78]
[1755303580040,2.96,185.95,185.89,5.3754]
[1755303581036,2.96,185.95,185.88,6.1559]
[1755303581237,2.96,185.95,185.87,5.48198196]
[1755303582136,2.96,185.95,185.87,10.85818196]
[1755303583138,2.96,185.95,185.87,5.48198196]
[1755303583641,2.96,185.95,185.88,0.78]
[1755303584536,2.96,185.95,185.87,5.48198196]
[1755303584738,2.96,185.95,185.83,5.48198196]
[1755303585643,2.96,185.95,185.83,10.85928196]
[1755303585843,2.96,185.95,185.84,0.78]
[1755303586338,2.96,185.95,185.86,5.3763]
[1755303586534,2.96,185.95,185.87,0.78]
[1755303586738,2.96,185.95,185.89,5.3754]
[1755303586938,136.12,186.01,185.89,0.04105215]
[1755303587243,4.01834067,186.0,185.92,0.78]
[1755303587445,2.96,185.95,185.92,0.78]
[1755303587644,2.96,185.95,185.93,0.03693223]
[1755303588240,136.12,186.01,185.93,0.03693223]
[1755303588541,3.07,185.94,185.93,0.03693223]
[1755303588945,3.07,185.94,185.85,0.79]
[1755303589145,3.07,185.94,185.83,0.83]
[1755303589545,3.07,185.92,185.83,0.83]
[1755303589742,3.07,185.92,185.8,5.48198196]
[1755303590040,3.07,185.92,185.85,0.83]
[1755303590238,0.03540311,185.88,185.85,0.83]
[1755303590436,3.07,185.92,185.85,0.83]
[1755303590642,3.07,185.92,185.88,0.83]
[1755303590853,3.07,185.92,185.89,6.2054]
[1755303591047,3.07,186.0,185.9,0.83]
[1755303591345,3.07,185.98,185.9,0.83]
[1755303591752,3.07,185.98,185.92,0.03437508]
[1755303592143,4.02757901,185.97,185.92,0.03437508]
[1755303592344,136.12,186.01,185.92,0.03437508]
[1755303592345,3.07,185.96,185.92,0.03437508]
[1755303592854,3.07,186.0,185.92,0.03437508]
[1755303593046,3.07,185.98,185.92,0.03437508]
[1755303595160,4.03075855,185.97,185.92,0.03437508]
[1755303595463,3.07,185.96,185.92,0.03437508]
[1755303599661,3.07,185.95,185.92,0.03437508]
[1755303599858,3.07,185.94,185.92,0.03437508]
[1755303600665,3.07,185.93,185.92,0.03437508]
[1755303601865,136.12,186.01,185.92,0.03437508]
[1755303601866,3.07,186.0,185.92,0.03437508]
[1755303602068,3.07,185.98,185.93,0.83]
[1755303602360,0.0398354,185.94,185.92,5.51635704]
[1755303602559,3.07,185.97,185.92,5.51635704]
[1755303602768,3.07,186.06,185.97,0.83]
[1755303602957,3.07,186.04,185.97,0.83]
[1755303603162,136.53573541,186.08,186.02,5.3717]
[1755303603368,3.07,186.03,186.02,5.3717]
[1755303603668,3.07,186.05,186.03,5.3713]
[1755303604064,3.07,186.05,186.01,0.8646221]
[1755303604370,3.07,186.09,186.03,0.83]
[1755303604560,135.56,186.14,186.05,0.83]
[1755303604767,3.07,186.13,186.07,5.3702]
[1755303604960,3.07,186.13,186.05,0.83]
[1755303605370,3.07,186.13,186.08,0.04028711]
[1755303606371,3.07,186.12,186.08,0.87028711]
[1755303606668,4.48811193,186.24,186.11,0.83]
[1755303606969,3.07,186.2,186.11,0.83]
[1755303607170,3.07,186.2,186.16,0.03638711]
[1755303609470,135.58,186.23,186.16,0.03638711]
[1755303609471,3.07,186.22,186.16,0.03638711]
[1755303610371,4.00345337,186.21,186.16,0.03638711]
[1755303610573,3.07,186.22,186.16,0.03638711]
[1755303610767,3.07,186.2,186.16,0.03638711]
[1755303612568,3.07,186.2,186.08,5.48198196]
[1755303612769,3.07,186.18,186.08,5.48198196]
[1755303612968,3.07,186.16,186.09,0.86]
[1755303613773,3.07,186.16,186.06,0.86]
[1755303615475,3.07,186.16,186.06,6.2305]
[1755303615675,3.07,186.16,186.07,0.86]
[1755303616977,3.07,186.16,186.07,6.2303]
[1755303617673,3.07,186.16,186.08,5.48198196]
[1755303617971,3.07,186.16,186.09,0.86]
[1755303618178,3.07,186.16,186.11,5.3693]
[1755303618677,135.52,186.17,186.12,0.85]
[1755303618877,3.07,186.14,186.12,6.219]
[1755303619070,3.07,186.16,186.12,0.85]
[1755303619474,3.07,186.16,186.09,0.85]
[1755303619973,3.07,186.16,186.08,5.48198196]
[1755303620667,3.07,186.16,186.08,10.85198196]
[1755303620865,3.07,186.16,186.08,6.33198196]
[1755303621276,3.07,186.16,186.09,0.85]
[1755303622373,3.07,186.16,186.08,5.3701]
[1755303622574,3.07,186.16,186.07,0.85]
[1755303622771,3.07,186.16,186.05,0.85]
[1755303623369,3.07,186.16,186.05,6.2209]
[1755303623572,3.07,186.14,186.05,0.85]
[1755303624874,3.07,186.14,186.07,5.48198196]
[1755303625076,3.07,186.14,186.08,0.85]
[1755303625479,3.07,186.17,186.08,0.85]
[1755303627476,3.07,186.17,186.07,5.48198196]
[1755303627780,3.07,186.13,185.99,0.85]
[1755303628477,3.07,186.13,186.02,0.85]
[1755303628678,4.00052489,186.12,186.02,0.85]
[1755303628975,3.07,186.11,186.02,0.85]
[1755303629175,3.07,186.11,186.02,6.33198196]
[1755303629382,3.07,186.11,186.03,0.85]
[1755303629584,3.07,186.14,186.07,0.85]
[1755303629781,3.07,186.16,186.14,5.3683]
[1755303629982,138.41,186.18,186.14,6.2183]
[1755303630180,3.07,186.17,186.14,5.3683]
[1755303630482,3.07,186.15,186.14,5.3683]
[1755303631178,3.07,186.14,186.13,5.3686]
[1755303631372,3.07,186.17,186.1,6.33198196]
[1755303631577,3.07,186.17,186.1,5.48198196]
[1755303631777,3.07,186.17,186.07,0.85]
[1755303631973,3.07,186.17,186.1,5.3696]
[1755303632184,3.07,186.17,186.07,0.85]
[1755303632978,3.07,186.17,186.12,5.369]
[1755303633383,3.07,186.17,186.09,0.85]
[1755303633584,3.07,186.17,186.1,5.48198196]
[1755303633787,3.07,186.17,186.11,0.85]
[1755303634378,3.07,186.17,186.11,5.3692]
[1755303634591,3.07,186.17,186.07,0.85]
[1755303634995,3.07,186.15,186.07,5.3702]
[1755303635290,3.07,186.13,186.07,5.3702]
[1755303635484,3.07,186.13,186.06,5.48198196]
[1755303636288,3.07,186.13,186.07,0.85]
[1755303636689,3.07,186.16,186.09,5.3698]
[1755303636891,3.07,186.14,186.03,5.48198196]
[1755303637090,3.07,186.12,186.02,5.3718]
[1755303637394,3.07,186.1,186.01,0.85]
[1755303637589,4.04690975,186.09,186.0,0.85]
[1755303637786,3.07,186.08,186.0,0.85]
[1755303638190,4.48811193,186.13,186.02,5.3718]
[1755303638493,4.05141872,186.12,186.02,8.2718]
[1755303638686,4.05141872,186.11,186.02,8.2718]
[1755303638886,4.48811193,186.13,186.02,8.2718]
[1755303638887,4.05141872,186.1,186.02,8.2718]
[1755303639087,4.05141872,186.09,186.03,2.9]
[1755303639287,13.67811193,186.14,186.03,2.9]
[1755303639493,4.05329401,186.13,186.03,2.9]
[1755303639695,4.05329401,186.12,186.04,5.3712]
[1755303639896,4.05329401,186.11,186.05,2.9]
[1755303640189,3.07,186.15,186.07,5.3703]
[1755303640495,4.48811193,186.16,186.05,2.9]
[1755303640496,3.07,186.13,186.05,2.9]
[1755303640690,3.07,186.11,186.05,2.9]
[1755303640989,3.07,186.11,186.07,5.3702]
[1755303641296,3.07,186.11,186.09,2.9]
[1755303641994,3.07,186.11,186.1,2.9]
[1755303642388,3.07,186.11,186.08,5.3701]
[1755303642891,3.07,186.11,186.09,8.2698]
[1755303643087,3.07,186.11,186.09,2.9]
[1755303643288,3.07,186.14,186.06,5.3707]
[1755303643483,3.07,186.12,186.05,8.38198196]
[1755303643690,4.0641214,186.11,186.05,8.38198196]
[1755303643892,3.07,186.09,186.06,8.2706]
[1755303644292,3.07,186.09,186.07,2.9]
[1755303644594,3.07,186.09,186.07,8.2704]
[1755303644789,3.07,186.09,186.07,2.9]
[1755303644994,3.07,186.13,186.05,10.85298196]
[1755303645189,4.06813111,186.12,186.05,10.85298196]
[1755303645394,4.10700645,186.11,186.07,0.03621863]
[1755303645595,7.13813111,186.1,186.07,0.03621863]
[1755303645798,3.07,186.08,186.07,0.03621863]
[1755303645992,3.07,186.1,186.07,0.03621863]
[1755303646197,3.07,186.08,186.07,0.03621863]
[1755303646394,7.13855512,186.08,186.07,0.03621863]
[1755303647293,3.07,186.1,186.07,2.93621863]
[1755303647495,4.07682304,186.09,186.08,2.9]
[1755303647697,3.07,186.08,186.07,0.03621863]
[1755303647897,7.14682304,186.08,186.07,0.03621863]
[1755303649899,3.13887534,186.11,186.07,3.17621863]
[1755303650107,0.03887534,186.11,186.07,3.17621863]
[1755303650401,0.03887534,186.11,186.1,8.5096]
[1755303650602,4.11725197,186.11,186.1,8.5096]
[1755303650905,4.11725197,186.11,186.1,3.14]
[1755303651106,0.03887534,186.11,186.1,3.14]
[1755303651600,0.03887534,186.11,186.07,0.03621863]
[1755303651601,3.1,186.1,186.07,0.03621863]
[1755303651806,3.1,186.08,186.07,0.03621863]
[1755303652307,7.17913069,186.08,186.07,0.03621863]
[1755303652900,4.07913069,186.08,186.07,0.03621863]
[1755303653106,3.1,186.09,186.07,3.17621863]
[1755303653409,3.1,186.09,186.07,8.54661863]
[1755303653803,0.03887534,186.11,186.07,0.03621863]
[1755303654002,0.03887534,186.11,186.1,3.14]
[1755303654204,3.13887534,186.11,186.07,3.17621863]
[1755303654501,3.13887534,186.11,186.08,8.5099]
[1755303654706,3.13887534,186.11,186.08,3.14]
[1755303654902,3.13887534,186.11,186.09,3.14]
[1755303655203,0.03887534,186.11,186.07,3.17621863]
[1755303655605,3.1,186.09,186.07,3.17621863]
[1755303655907,3.1,186.09,186.08,3.14]
[1755303656104,0.03887534,186.11,186.09,3.14]
[1755303656405,0.03887534,186.11,186.08,3.14]
[1755303657306,3.1,186.1,186.08,3.14]
[1755303658206,0.03887534,186.11,186.1,5.3696]
[1755303658407,3.13887534,186.11,186.1,5.3696]
[1755303659302,3.13887534,186.11,186.09,5.3698]